bitfinex/quotes_ETHUSD_20260302
["timestamp","ask_amount","ask_price","bid_price","bid_amount"]
[1772440064266,2.1136378,1929.3,1928.4,0.0011]
[1772440064429,2.1136378,1929.2,1928.4,0.0011]
[1772440064757,1.75,1929.1,1928.4,2.15484451]
[1772440065327,7.32923308,1929.4,1928.5,2.15374451]
[1772440065328,2.1136378,1929.4,1928.5,2.15374451]
[1772440065548,1.75,1929.4,1928.7,2.15374451]
[1772440066554,2.1136378,1929.6,1928.9,2.15374451]
[1772440066740,1.749,1929.7,1928.9,2.15374451]
[1772440066931,2.1136378,1929.6,1928.9,2.15374451]
[1772440067255,2.09529137,1929.5,1928.8,1.29614267]
[1772440067461,4.24150649,1929.4,1928.7,3.46262748]
[1772440067676,2.09529137,1929.4,1928.7,3.46262748]
[1772440068865,3.39104126,1929.4,1928.7,3.46262748]
[1772440069766,2.09529137,1929.3,1928.7,1.29616018]
[1772440070063,3.84329137,1929.2,1928.8,0.0011]
[1772440070662,2.09529137,1929.0,1928.7,0.0011]
[1772440071029,1.29607548,1928.9,1928.5,0.0011]
[1772440071236,1.29607548,1928.9,1928.3,0.0011]
[1772440071237,2.09529137,1928.7,1928.3,0.0011]
[1772440071458,1.748,1928.6,1928.3,0.0011]
[1772440071976,2.09529137,1929.8,1928.6,2.1664673]
[1772440072175,2.09529137,1929.7,1928.6,2.1664673]
[1772440072341,3.84329137,1929.6,1928.6,2.1664673]
[1772440072537,2.09529137,1929.4,1928.6,2.1664673]
[1772440072743,2.09529137,1929.3,1928.6,2.1664673]
[1772440073140,2.09529137,1929.6,1928.8,2.1664673]
[1772440073456,5.13790613,1929.6,1928.8,2.1664673]
[1772440073847,2.09529137,1929.5,1928.8,2.1664673]
[1772440075394,2.09529137,1929.3,1928.7,1.29620988]
[1772440076704,2.09529137,1929.6,1928.8,2.1664673]
[1772440076870,1.747,1929.4,1928.8,2.1664673]
[1772440077200,3.84229137,1929.4,1928.9,1.29607548]
[1772440077495,3.84129137,1929.5,1928.9,3.46254278]
[1772440078472,4.66633438,1929.8,1929.0,2.1664673]
[1772440078672,1.747,1929.7,1929.0,2.1664673]
[1772440078877,3.84229137,1929.7,1929.0,2.1664673]
[1772440079574,5.13783624,1929.7,1929.1,1.29594111]
[1772440080978,4.24150649,1929.3,1928.7,1.29620988]
[1772440081281,1.747,1929.2,1928.7,1.29620988]
[1772440082338,1.747,1929.2,1928.8,0.0011]
[1772440083213,3.04287851,1929.2,1928.8,0.0011]
[1772440083401,1.747,1929.2,1928.8,0.0011]
[1772440083882,3.04289549,1929.2,1928.8,0.0011]
[1772440084205,2.09529137,1929.1,1928.8,0.0011]
[1772440084395,5.18911061,1929.2,1928.5,2.1675673]
[1772440084396,4.24150649,1929.0,1928.5,2.1675673]
[1772440084576,2.09529137,1928.9,1928.5,2.1675673]
[1772440084781,1.748,1928.8,1928.5,2.1675673]
[1772440085511,5.98950649,1928.8,1928.5,2.1675673]
[1772440085817,1.29620988,1928.7,1928.5,2.1675673]
[1772440086182,2.09529137,1928.6,1928.3,0.0011]
[1772440088537,3.39163567,1928.5,1928.3,0.0011]
[1772440088829,1.752,1928.4,1928.3,0.0011]
[1772440090031,2.09529137,1928.3,1928.1,0.0011]
[1772440090209,3.63358651,1928.1,1927.5,2.1664673]
[1772440090520,1.755,1928.3,1927.7,2.1664673]
[1772440092008,4.92998204,1928.5,1927.7,2.1664673]
[1772440092188,1.754,1928.4,1927.9,2.1664673]
[1772440092525,1.754,1928.4,1928.0,3.46314779]
[1772440094232,1.754,1928.6,1928.1,1.9696983]
[1772440094727,1.754,1928.6,1928.2,1.296546]
[1772440094939,1.94594192,1929.0,1928.3,1.9696983]
[1772440095235,0.00153886,1929.0,1928.6,1.9696983]
[1772440095932,3.4826982,1928.8,1928.2,1.296546]
[1772440096139,3.4826982,1928.8,1928.1,1.29766964]
[1772440096632,3.4826982,1928.8,1928.1,3.26736794]
[1772440096999,4.77885554,1928.8,1928.1,3.26736794]
[1772440099149,1.94440306,1928.8,1928.2,2.11241028]
[1772440099330,1.94440306,1928.8,1928.1,1.29766964]
[1772440099331,1.753,1928.8,1928.1,1.29766964]
[1772440099518,1.94647833,1928.7,1928.1,3.41007992]
[1772440099719,1.94647833,1928.7,1928.1,3.41012223]
[1772440101321,3.04919562,1928.8,1928.1,3.41012223]
[1772440101506,4.99567395,1928.8,1928.1,3.41012223]
[1772440101713,3.69947833,1928.8,1928.1,3.41012223]
[1772440102745,4.99562117,1928.8,1928.1,3.41012223]
[1772440102940,0.00153886,1929.0,1928.3,2.11241028]
[1772440103445,1.29756163,1929.0,1928.4,3.40882181]
[1772440103623,0.00153886,1929.0,1928.4,3.40882181]
[1772440103938,1.94801719,1929.0,1928.4,1.29641153]
[1772440104636,1.94647833,1928.9,1928.3,1.29643275]
[1772440104811,1.94647833,1928.9,1928.3,3.40884303]
[1772440105611,3.242621,1928.8,1928.1,3.41008947]
[1772440106412,1.94647833,1928.6,1928.1,0.0011]
[1772440106613,3.69847833,1928.6,1928.1,0.0011]
[1772440107219,3.48477347,1928.5,1928.1,0.0011]
[1772440107409,1.53829514,1928.3,1927.8,0.0011]
[1772440107615,3.48477347,1928.1,1927.6,0.0011]
[1772440107816,3.69847833,1928.0,1927.6,0.0011]
[1772440108450,1.53829514,1927.7,1927.1,2.11241028]
[1772440108616,1.53829514,1927.6,1927.0,0.00153886]
[1772440108820,1.94647833,1927.7,1927.0,1.29889093]
[1772440109819,3.24338576,1927.7,1927.0,0.00153886]
[1772440110222,3.24338576,1927.7,1927.0,2.11394914]
[1772440110426,1.752,1927.6,1927.0,2.11394914]
[1772440110922,3.48477347,1927.5,1927.0,0.00153886]
[1772440111323,3.48477347,1927.5,1926.6,0.003]
[1772440111324,3.48477347,1927.2,1926.6,0.003]
[1772440111637,2.83571029,1927.0,1926.6,0.003]
[1772440111818,3.48477347,1926.8,1926.0,2.11694914]
[1772440112020,1.53829514,1926.4,1925.5,2.11241028]
[1772440112218,1.752,1926.3,1925.7,2.11241028]
[1772440113046,3.29029514,1926.3,1925.4,7.30603953]
[1772440113220,5.23677347,1926.3,1925.4,3.41084177]
[1772440113951,3.24422216,1926.5,1925.5,2.11241028]
[1772440114132,4.99522216,1926.5,1925.7,2.11241028]
[1772440114450,4.99522216,1926.5,1925.4,4.94913691]
[1772440114645,1.94647833,1926.4,1925.4,3.41084177]
[1772440114836,1.75,1926.4,1925.8,2.11241028]
[1772440116144,1.75,1926.4,1925.9,1.29809439]
[1772440116346,1.29763914,1926.6,1925.9,1.29809439]
[1772440116551,1.75,1926.4,1925.9,1.29809439]
[1772440117230,1.75,1926.4,1925.8,3.4105302]
[1772440117752,1.94647833,1926.7,1925.9,2.11241028]
[1772440117954,4.71243443,1927.0,1926.3,1.29782484]
[1772440118158,3.41501719,1927.0,1926.3,1.29782484]
[1772440118325,4.99437071,1927.0,1926.3,1.29782484]
[1772440118828,6.53266585,1927.0,1926.3,1.29782484]
[1772440119423,6.53266585,1927.0,1926.4,2.11241028]
[1772440119424,0.00153886,1927.0,1926.4,2.11241028]
[1772440119636,0.00153886,1927.0,1926.5,2.11241028]
[1772440120246,0.00153886,1927.0,1926.5,3.41006846]
[1772440120567,0.00153886,1927.0,1926.5,1.29765818]
[1772440120927,0.00153886,1927.0,1926.5,3.41006846]
[1772440121162,0.00153886,1927.0,1926.6,2.11241028]
[1772440121364,4.78174607,1927.6,1926.6,3.65070542]
[1772440121537,1.749,1927.3,1926.6,2.11241028]
[1772440121736,1.94647833,1927.6,1926.6,2.11241028]
[1772440121969,1.749,1927.6,1926.8,2.11241028]
[1772440122267,1.29701686,1927.5,1926.9,1.29742072]
[1772440122434,1.53829514,1927.6,1926.9,1.29742072]
[1772440122639,1.748,1927.5,1926.9,1.29742072]
[1772440124170,1.748,1927.6,1926.9,3.409831]
[1772440125560,1.94647833,1927.9,1927.1,2.11241028]
[1772440125858,1.74853886,1928.0,1927.3,2.11241028]
[1772440126265,1.74853886,1928.0,1927.4,1.29708415]
[1772440127166,3.0452283,1928.0,1927.4,1.29708415]
[1772440127542,3.0452283,1928.0,1927.2,1.29717292]
[1772440127543,3.53264821,1927.8,1927.2,1.29717292]
[1772440127735,1.99435307,1927.7,1927.0,3.22414617]
[1772440127935,1.99435307,1927.7,1927.0,4.76244131]
[1772440128775,3.29129466,1927.7,1927.0,3.22414617]
[1772440128972,3.286834,1928.0,1927.4,1.92684566]
[1772440128973,1.29822367,1928.0,1927.4,1.92684566]
[1772440129267,1.29822367,1928.0,1927.2,1.53829514]
[1772440129268,1.99435307,1927.9,1927.2,1.53829514]
[1772440129434,1.99435307,1927.9,1927.1,1.92684566]
[1772440129635,1.99435307,1927.9,1927.0,2.83559565]
[1772440130269,1.99435307,1927.9,1927.0,4.76244131]
[1772440130459,1.745,1927.8,1927.0,4.76244131]
[1772440131394,5.03617102,1927.8,1927.0,4.76244131]
[1772440131680,1.99435307,1927.8,1927.0,4.76244131]
[1772440131884,1.744,1927.7,1927.0,3.22414617]
[1772440132087,0.001,1927.9,1927.1,1.92684566]
[1772440132260,1.744,1927.8,1927.1,1.92684566]
[1772440132456,1.744,1927.8,1927.2,1.53829514]
[1772440132689,0.001,1927.9,1927.3,1.92684566]
[1772440132896,1.745,1927.9,1927.6,1.53829514]
[1772440133060,1.745,1927.9,1927.4,1.92684566]
[1772440134168,1.745,1927.9,1927.5,1.29701686]
[1772440134689,0.001,1927.9,1927.5,3.22386252]
[1772440135893,0.001,1927.9,1927.5,1.29701686]
[1772440137410,1.29653051,1928.3,1927.5,1.29701686]
[1772440137411,1.29640365,1928.5,1927.8,1.53829514]
[1772440137689,1.99435307,1928.2,1927.5,3.22386252]
[1772440138694,1.99435307,1928.2,1927.6,1.53829514]
[1772440140306,1.99435307,1928.1,1927.5,1.29701118]
[1772440140799,1.99435307,1928.1,1927.2,1.29718079]
[1772440140800,1.99435307,1927.9,1927.2,1.29718079]
[1772440141006,3.73435307,1927.8,1927.2,1.29718079]
[1772440141192,1.739,1927.8,1927.2,2.83547593]
[1772440141378,1.99435307,1927.9,1927.2,2.83547593]
[1772440141578,1.739,1927.8,1927.2,2.83547593]
[1772440141989,1.739,1927.8,1927.2,4.76232159]
[1772440142706,1.29688229,1927.7,1927.0,1.92838452]
[1772440142914,1.99435307,1927.4,1926.5,3.22453577]
[1772440143202,1.739,1927.3,1926.5,3.22453577]
[1772440143907,1.739,1927.3,1926.4,1.29771015]
[1772440143908,1.99435307,1927.1,1926.4,1.29771015]
[1772440144101,1.64873682,1927.1,1926.4,1.29771015]
[1772440144308,1.64873682,1927.1,1926.2,5.19147557]
[1772440144503,1.64873682,1927.1,1927.0,0.0011]
[1772440144707,2.94602289,1927.1,1927.0,0.0011]
[1772440145297,1.738,1927.3,1927.0,0.0011]
[1772440145609,1.99435307,1927.2,1927.0,0.0011]
[1772440145983,3.73335307,1927.5,1927.0,0.0011]
[1772440146304,1.739,1927.6,1927.0,0.0011]
[1772440146808,3.03601145,1927.6,1927.0,1.29845339]
[1772440147017,1.739,1927.6,1927.1,1.53829514]
[1772440147912,3.03675066,1927.9,1927.3,1.53829514]
[1772440148297,3.03675066,1927.9,1927.5,1.53829514]
[1772440148298,0.001,1927.9,1927.5,1.53829514]
[1772440148492,0.001,1927.9,1927.4,1.92684566]
[1772440148893,0.001,1927.9,1927.5,1.29701686]
[1772440149416,0.001,1927.9,1927.4,3.22388014]
[1772440151117,1.99535307,1927.9,1927.1,1.29723573]
[1772440151316,1.99535307,1927.9,1927.1,3.22408139]
[1772440151633,0.001,1927.9,1927.5,1.92684566]
[1772440151828,0.001,1927.9,1927.3,1.92684566]
[1772440152907,0.001,1927.9,1927.4,1.29708415]
[1772440153291,0.001,1927.9,1927.5,2.11780238]
[1772440153821,2.05336314,1928.4,1927.8,2.15411242]
[1772440154013,1.734,1928.5,1927.8,4.2719148]
[1772440154830,2.05336314,1928.6,1927.8,4.2719148]
[1772440155122,2.05336314,1928.6,1927.9,3.41455013]
[1772440155617,1.734,1928.7,1928.0,2.15411242]
[1772440156189,3.03021056,1928.7,1928.0,2.15411242]
[1772440156592,1.734,1928.7,1928.0,2.15411242]
[1772440156790,3.03021643,1928.7,1928.0,2.15411242]
[1772440156995,5.08357957,1928.7,1928.1,1.29661324]
[1772440157300,5.08357778,1928.7,1928.1,1.29661324]
[1772440157710,5.08357778,1928.7,1928.0,1.29662987]
[1772440158625,2.10854364,1928.6,1927.9,3.41450503]
[1772440159025,3.40487768,1928.6,1927.9,3.41450503]
[1772440164643,3.40568852,1928.8,1928.1,1.9724889]
[1772440164980,2.10854364,1928.7,1928.1,1.9724889]
[1772440165309,2.10854364,1928.5,1927.6,1.29691252]
[1772440165509,2.10854364,1928.3,1927.6,3.26940142]
[1772440165938,1.733,1928.4,1927.7,1.9724889]
[1772440166146,2.10854364,1928.5,1927.7,1.9724889]
[1772440166449,1.733,1928.4,1927.7,1.9724889]
[1772440166748,3.84054364,1928.4,1927.7,1.9724889]
[1772440167316,5.13696685,1928.4,1927.8,1.29681502]
[1772440167656,2.10854364,1928.3,1927.8,1.29681502]
[1772440169149,2.10854364,1928.3,1928.1,0.0011]
[1772440169350,3.40504742,1928.3,1928.1,0.0011]
[1772440169575,1.732,1928.4,1928.1,0.0011]
[1772440169786,1.733,1928.5,1928.1,0.0011]
[1772440171182,1.29727731,1928.6,1928.1,0.0011]
[1772440171399,3.02935473,1928.5,1928.1,0.0011]
[1772440171689,1.733,1928.5,1928.1,0.0011]
[1772440172058,2.10854364,1928.4,1928.1,0.0011]
[1772440173459,3.0293497,1928.5,1928.1,0.0011]
[1772440173658,1.2963497,1928.5,1928.1,0.0011]
[1772440173861,1.735,1928.4,1928.1,0.0011]
[1772440174458,3.84354364,1928.4,1928.1,0.0011]
[1772440176075,1.29647876,1928.3,1928.1,0.0011]
[1772440177065,3.4050224,1928.3,1927.8,0.0011]
[1772440177388,2.10854364,1928.2,1927.8,0.0011]
[1772440177675,2.10854364,1928.2,1927.8,1.29790627]
[1772440179174,2.10854364,1928.2,1927.8,0.0011]
[1772440179379,3.40509563,1928.2,1927.8,0.0011]
[1772440180366,1.29637593,1928.5,1927.8,1.9735889]
[1772440180569,1.739,1928.4,1927.8,1.9735889]
[1772440180879,1.739,1928.3,1927.8,1.9735889]
[1772440181379,1.739,1928.3,1927.9,1.29784775]
[1772440181560,1.74,1928.3,1927.9,1.29784775]
[1772440181880,5.14502608,1928.3,1927.9,0.0011]
[1772440182665,1.739,1928.2,1927.9,0.0011]
[1772440183561,0.001,1928.3,1928.0,2.15411242]
[1772440183882,0.001,1928.3,1927.9,1.9735889]
[1772440184871,0.001,1928.3,1928.1,1.9724889]
[1772440185682,0.001,1928.3,1928.1,3.26905185]
[1772440185884,0.001,1928.3,1927.9,0.0011]
[1772440186070,0.001,1928.3,1927.9,1.29783728]
[1772440186271,0.001,1928.3,1927.9,0.0011]
[1772440186475,0.001,1928.3,1927.9,1.29784774]
[1772440186786,0.001,1928.3,1927.9,0.0011]
[1772440186969,2.10954364,1928.3,1927.9,0.0011]
[1772440187962,3.28721752,1928.2,1927.9,0.0011]
[1772440188386,1.29752834,1928.3,1927.9,0.0011]
[1772440188760,1.739,1928.2,1927.9,0.0011]
[1772440189785,0.001,1928.3,1927.9,1.96184343]
[1772440189961,0.001,1928.3,1927.9,3.25856116]
[1772440190361,0.001,1928.3,1927.9,3.25858902]
[1772440190788,0.001,1928.3,1927.9,1.96184343]
[1772440191002,0.001,1928.3,1927.9,1.29784089]
[1772440191664,0.001,1928.3,1927.9,1.2978437]
[1772440191984,1.99167152,1928.3,1927.9,0.0011]
[1772440192191,0.001,1928.3,1927.9,0.0011]
[1772440192390,1.29748774,1928.3,1927.9,0.0011]
[1772440192592,0.001,1928.3,1927.9,0.0011]
[1772440193474,0.001,1928.3,1928.0,0.0011]
[1772440193660,0.001,1928.2,1928.0,0.0011]
[1772440198708,0.001,1928.6,1928.2,1.96074343]
[1772440198907,3.28795393,1928.6,1928.0,1.96184343]
[1772440199084,1.99067152,1928.5,1928.0,0.0011]
[1772440200368,3.28708305,1928.4,1928.0,0.0011]
[1772440200574,1.99067152,1928.3,1928.0,0.0011]
[1772440201710,1.74,1928.3,1928.0,0.0011]
[1772440201873,3.73067152,1928.3,1928.0,0.0011]
[1772440202077,1.99067152,1928.2,1927.9,0.0011]
[1772440202282,1.99067152,1928.2,1927.7,0.0011]
[1772440202531,1.99067152,1928.1,1927.7,0.0011]
[1772440203395,1.741,1928.3,1927.7,1.96184343]
[1772440203877,1.99067152,1928.3,1927.7,1.96184343]
[1772440204076,1.29639448,1928.5,1927.7,1.96184343]
[1772440204077,1.99067152,1928.4,1927.7,1.96184343]
[1772440204279,1.741,1928.4,1927.7,1.96184343]
[1772440204678,1.741,1928.4,1927.8,3.25755845]
[1772440205391,1.741,1928.4,1927.8,3.25865845]
[1772440205586,0.001,1928.2,1927.9,1.96074343]
[1772440206204,0.001,1928.2,1927.8,3.25865845]
[1772440207235,0.001,1928.2,1927.9,1.96074343]
[1772440209036,0.001,1928.2,1927.9,3.25743445]
[1772440211803,0.001,1928.2,1927.9,1.29669102]
[1772440213007,1.99167152,1928.2,1927.8,0.0011]
[1772440213418,1.99067152,1928.1,1927.8,0.0011]
[1772440214147,0.001,1928.6,1928.0,1.96074343]
[1772440214342,1.99167152,1928.6,1928.0,1.96074343]
[1772440215144,0.001,1928.6,1928.0,1.96074343]
[1772440215545,0.001,1928.6,1928.1,3.23750825]
[1772440216856,0.001,1928.6,1928.2,1.94089501]
[1772440217328,0.001,1928.8,1928.4,1.96501122]
[1772440217645,1.89366588,1928.8,1928.3,1.96501122]
[1772440219508,1.89266588,1928.7,1928.2,1.296546]
[1772440220455,1.89266588,1928.7,1928.2,3.26155722]
[1772440220839,0.001,1928.8,1928.3,1.96501122]
[1772440221752,0.001,1928.8,1928.4,3.26142275]
[1772440221957,1.89366588,1928.8,1928.2,1.29651281]
[1772440222621,1.89366588,1928.8,1928.2,3.26152403]
[1772440223457,1.89366588,1928.8,1928.3,1.96501122]
[1772440224057,1.89366588,1928.8,1928.4,1.29641153]
[1772440224564,3.18981242,1928.8,1928.3,3.26143831]
[1772440224719,1.89366588,1928.8,1928.3,3.26143831]
[1772440224917,3.18980924,1928.8,1928.3,3.26143831]
[1772440225229,1.89266588,1928.7,1928.3,1.29642709]
[1772440225451,0.001,1928.8,1928.3,3.26143831]
[1772440225761,0.001,1928.8,1928.4,1.96501122]
[1772440226271,0.00153886,1929.0,1928.6,1.96501122]
[1772440226421,0.00153886,1929.0,1928.5,1.2963443]
[1772440226757,1.29754895,1929.0,1928.6,1.96501122]
[1772440226957,1.89266588,1928.8,1928.3,2.72343291]
[1772440227523,1.89266588,1928.8,1928.3,1.29643291]
[1772440227925,1.89266588,1928.8,1928.3,3.26144413]
[1772440228120,1.735,1928.9,1928.5,1.2963443]
[1772440228355,1.735,1928.9,1928.5,3.26135552]
[1772440228720,0.001,1929.1,1928.7,1.96501122]
[1772440229040,0.001,1929.1,1928.5,3.26135552]
[1772440229240,0.001,1929.1,1928.5,1.2963443]
[1772440229241,1.89266588,1929.0,1928.5,1.2963443]
[1772440229549,1.76275133,1929.0,1928.5,1.2963443]
[1772440229852,0.001,1928.7,1928.5,1.2963443]
[1772440230055,1.66629794,1929.0,1928.5,1.2963443]
[1772440230349,1.55860268,1929.0,1928.5,1.2963443]
[1772440230524,1.735,1929.1,1928.6,1.96501122]
[1772440231070,0.001,1929.1,1928.6,1.96501122]
[1772440231557,0.001,1929.1,1928.7,1.96501122]
[1772440232344,0.001,1929.1,1928.8,3.26115389]
[1772440236525,0.001,1929.1,1928.8,3.56847707]
[1772440236722,1.89266588,1929.4,1928.9,2.2723344]
[1772440236926,1.73,1929.5,1928.9,2.2723344]
[1772440237148,4.91930606,1929.6,1929.0,0.30732318]
[1772440237357,0.001,1929.6,1929.4,0.30732318]
[1772440237566,1.89266588,1929.8,1929.4,0.30732318]
[1772440237732,1.89266588,1929.8,1929.3,1.96501122]
[1772440237931,2.19998906,1929.8,1929.3,1.96501122]
[1772440238225,2.19998906,1929.7,1929.2,1.29587393]
[1772440238426,1.89266588,1929.7,1929.2,1.29587393]
[1772440238842,3.18954834,1930.0,1929.4,1.96501122]
[1772440239057,1.89266588,1929.9,1929.2,1.29587393]
[1772440239256,1.89266588,1929.9,1929.2,3.26088515]
[1772440239459,1.89266588,1929.9,1929.3,1.96501122]
[1772440240230,3.62266588,1929.9,1929.3,1.96501122]
[1772440240427,1.89266588,1929.9,1929.4,3.26075082]
[1772440240734,0.00153886,1930.0,1929.6,3.50107098]
[1772440240930,0.00153886,1930.0,1929.7,1.96501122]
[1772440242564,0.00153886,1930.0,1929.8,1.29547103]
[1772440242929,1.89266588,1930.3,1929.8,1.29547103]
[1772440244055,3.18780824,1930.3,1929.7,3.26052985]
[1772440244250,1.89266588,1930.1,1929.5,3.26063244]
[1772440244457,3.18793612,1930.1,1929.5,3.26063244]
[1772440245166,1.89266588,1930.1,1929.5,3.26063244]
[1772440246283,3.18794828,1930.1,1929.5,3.26063244]
[1772440246480,1.89266588,1930.0,1929.4,1.29573563]
[1772440246782,1.89266588,1930.0,1929.3,1.29576332]
[1772440247277,1.89266588,1930.0,1929.3,3.26077454]
[1772440247449,1.86700501,1930.2,1929.6,1.97508567]
[1772440247659,3.59500501,1930.2,1929.6,1.97508567]
[1772440247858,3.59400501,1930.2,1929.6,1.97508567]
[1772440248357,1.86700501,1930.2,1929.7,1.29553816]
[1772440248575,1.86700501,1930.2,1929.7,3.27062383]
[1772440249384,1.29521073,1930.2,1929.7,1.29553816]
[1772440249591,1.86700501,1930.1,1929.5,1.29562094]
[1772440249882,0.899289,1930.1,1929.5,1.29562094]
[1772440250100,0.899289,1930.1,1929.6,1.97508567]
[1772440250476,1.727,1930.2,1929.7,1.29553816]
[1772440250681,3.59400501,1930.2,1929.6,3.27063845]
[1772440252867,3.59400501,1930.2,1929.3,1.97508567]
[1772440252868,1.86700501,1930.1,1929.3,1.97508567]
[1772440253175,1.86700501,1930.1,1929.4,1.97508567]
[1772440253691,4.88917096,1930.3,1929.5,1.97508567]
[1772440253876,3.59400501,1930.2,1929.5,1.97508567]
[1772440254081,1.86700501,1930.1,1929.5,1.97508567]
[1772440254282,1.86700501,1930.1,1929.7,0.0011]
[1772440254586,1.86800501,1930.1,1929.7,0.0011]
[1772440255367,1.53605976,1930.5,1929.7,0.0011]
[1772440255368,1.86700501,1930.6,1929.9,1.97508567]
[1772440256275,3.59300501,1930.6,1929.9,1.97508567]
[1772440256497,1.86700501,1930.5,1929.9,1.97508567]
[1772440256862,3.11205497,1930.5,1929.9,3.27043087]
[1772440257377,1.86700501,1930.1,1929.7,0.0011]
[1772440257563,3.40306477,1930.0,1929.7,0.0011]
[1772440257758,1.86700501,1930.0,1929.7,0.0011]
[1772440260412,1.727,1930.1,1929.7,0.0011]
[1772440260703,3.59400501,1930.1,1929.7,0.0011]
[1772440261198,1.86700501,1930.0,1929.7,0.0011]
[1772440262970,3.59500501,1930.2,1929.7,3.2716699]
[1772440263287,1.729,1930.3,1929.9,1.97508567]
[1772440263467,1.729,1930.5,1930.0,1.53605976]
[1772440263664,3.59754387,1931.0,1930.4,1.97508567]
[1772440263869,1.86700501,1930.9,1930.1,1.97508567]
[1772440265016,1.728,1930.9,1930.3,1.97508567]
[1772440265172,1.728,1930.9,1930.1,5.18081027]
[1772440265173,1.86700501,1930.8,1930.1,3.27030629]
[1772440265593,1.86700501,1930.8,1930.2,1.97508567]
[1772440266889,1.86700501,1930.7,1929.9,1.29535565]
[1772440267092,1.86700501,1930.5,1929.7,3.2716926]
[1772440267277,2.83099397,1930.6,1929.7,3.27172038]
[1772440267278,3.59500501,1930.4,1929.7,3.27172038]
[1772440267470,3.59500501,1930.4,1929.8,1.97618567]
[1772440268324,1.86700501,1930.3,1929.8,0.0011]
[1772440268609,1.86700501,1930.1,1929.7,0.0011]
[1772440268809,3.8,1930.3,1929.7,3.27169802]
[1772440269011,3.8,1930.3,1929.8,1.97508567]
[1772440269401,3.8,1930.3,1929.9,1.97508567]
[1772440270502,1.29497967,1930.6,1929.9,1.97508567]
[1772440270914,0.001,1930.7,1930.1,1.97508567]
[1772440271116,0.001,1930.7,1930.3,1.97508567]
[1772440271718,0.001,1930.7,1930.2,1.29517371]
[1772440271918,3.40306477,1930.4,1929.7,3.27168795]
[1772440272205,1.86700501,1930.4,1929.8,1.97508567]
[1772440272577,1.86700501,1930.4,1929.7,0.0011]
[1772440273206,1.86700501,1930.4,1929.7,1.29663123]
[1772440273878,1.29513547,1930.3,1929.7,0.0011]
[1772440274705,1.86700501,1930.2,1929.7,0.0011]
[1772440275382,2.14913146,1930.2,1929.5,0.0011]
[1772440275588,1.87616535,1929.9,1929.5,0.0011]
[1772440275789,1.29547103,1929.8,1929.5,0.0011]
[1772440276920,3.1716155,1929.9,1929.5,0.0011]
[1772440277209,4.8984849,1930.1,1929.5,1.82181906]
[1772440278411,3.1714849,1930.1,1929.5,1.82181906]
[1772440279334,1.80270547,1929.9,1929.5,0.0011]
[1772440279929,1.29547103,1929.8,1929.5,0.0011]
[1772440280133,3.0981765,1929.8,1929.5,0.0011]
[1772440280336,3.0981765,1929.8,1929.6,0.0011]
[1772440280612,1.24889806,1929.7,1929.1,1.86251308]
[1772440280927,1.24889806,1929.7,1929.3,0.0011]
[1772440281917,1.2956053,1929.6,1929.3,0.0011]
[1772440282235,3.09671487,1929.6,1929.0,0.00153886]
[1772440282746,3.09671487,1929.6,1929.0,1.86405194]
[1772440283515,1.29558728,1929.7,1929.1,1.86251308]
[1772440283848,3.09829275,1929.7,1929.1,1.86251308]
[1772440284044,1.80270547,1929.4,1929.0,0.00153886]
[1772440284554,3.09837792,1929.5,1929.0,0.00153886]
[1772440285410,3.09837792,1929.5,1929.0,1.86405194]
[1772440285611,3.09828671,1929.7,1929.1,1.86251308]
[1772440285805,1.29549863,1929.8,1929.3,1.86251308]
[1772440286038,1.29549863,1929.8,1929.3,3.15830716]
[1772440286241,1.29544554,1929.9,1929.4,1.86251308]
[1772440286826,3.09815101,1929.9,1929.2,3.15834101]
[1772440287329,3.09815101,1929.9,1929.2,1.29582793]
[1772440287525,3.09815101,1929.9,1929.3,1.86251308]
[1772440288341,1.80270547,1929.8,1929.2,1.2958734]
[1772440288542,1.80270547,1929.8,1929.1,1.86251308]
[1772440288730,1.80270547,1929.8,1929.1,3.15844625]
[1772440289041,1.29544554,1929.9,1929.2,1.86251308]
[1772440289222,3.09808676,1930.0,1929.3,1.86251308]
[1772440290547,3.09808676,1930.0,1929.4,3.15825268]
[1772440291055,3.09808676,1930.0,1929.5,1.86251308]
[1772440291056,1.29538129,1930.0,1929.5,1.86251308]
[1772440292679,1.29538129,1930.0,1929.5,3.15818281]
[1772440292834,1.29538129,1930.0,1929.5,1.86251308]
[1772440293148,1.29638129,1930.0,1929.5,1.86251308]
[1772440293857,1.29638129,1930.0,1929.6,1.86251308]
[1772440294429,1.29613301,1930.4,1929.7,1.86251308]
[1772440294737,1.29613301,1930.4,1929.8,3.15798411]
[1772440294930,1.29613301,1930.4,1929.9,1.86251308]
[1772440296819,0.001,1930.4,1930.0,3.15784986]
[1772440297025,1.29497091,1930.6,1930.1,1.86251308]
[1772440297633,1.29591043,1930.7,1930.1,1.86251308]
[1772440298121,1.80270547,1930.6,1929.9,3.15786588]
[1772440298321,1.29591043,1930.7,1930.0,4.01164454]
[1772440298556,1.29591043,1930.7,1930.1,1.86251308]
[1772440298925,1.29591043,1930.7,1930.2,1.86251308]
[1772440299558,3.0986159,1930.7,1930.2,1.86251308]
[1772440300191,3.0986159,1930.7,1930.0,4.59879953]
[1772440300373,1.80270547,1930.6,1930.0,1.86251308]
[1772440300776,1.80270547,1930.6,1930.0,3.15783628]
[1772440300984,3.09769319,1930.6,1930.1,1.86251308]
[1772440301471,3.09769319,1930.6,1930.1,3.15778234]
[1772440301759,3.09769319,1930.6,1930.1,3.15777899]
[1772440301922,3.09769319,1930.6,1930.1,1.86251308]
[1772440302346,3.09769319,1930.6,1930.1,3.15777006]
[1772440302544,3.09769319,1930.6,1930.0,3.15782093]
[1772440302854,3.09769319,1930.6,1930.1,1.86251308]
[1772440303671,3.09769319,1930.6,1930.1,3.15777009]
[1772440303962,1.29587534,1930.7,1930.2,1.86251308]
[1772440304373,3.09858081,1930.7,1930.2,1.86251308]
[1772440305345,1.80270547,1930.6,1930.0,1.86251308]
[1772440305632,1.80270547,1930.4,1929.8,4.59996763]
[1772440306176,1.80270547,1930.2,1929.5,0.0011]
[1772440306535,1.80270547,1930.0,1929.5,0.0011]
[1772440306856,1.80270547,1929.8,1929.3,0.0011]
[1772440307440,1.81523965,1929.7,1929.0,0.00263886]
[1772440307846,1.81523965,1929.5,1929.0,0.00263886]
[1772440308161,1.81523965,1929.4,1929.0,0.00263886]
[1772440308565,1.81523965,1929.4,1928.9,0.0011]
[1772440308566,1.81523965,1929.0,1928.8,0.0011]
[1772440308963,3.55923965,1929.0,1928.6,0.0011]